[Event "Germany Countries-chT Youth 2022"]
[Site "Wiesbaden"]
[Date "2022.10.01"]
[Round "1"]
[White "Yue, Qizhou"]
[Black "Mukazhanov, Mansur"]
[Result "1/2-1/2"]
[ECO "C07"]
[WhiteElo "1711"]
[BlackElo "1319"]
[Annotator "NA RC COMBH"]
[PlyCount "62"]
[EventDate "2022.09.28"]
[EventType "team-tourn"]
[EventRounds "7"]
[EventCountry "GER"]
[SourceTitle "playchess.com"]
[Source "ChessBase"]
[SourceQuality "1"]
[TimeControl "40/5400+30:1800+30"]

1. e4 {[%emt 0:00:03]} e6 {[%emt 0:01:33]} 2. d4 {[%emt 0:00:16]} d5 {[%emt 0:00:04]} 3. Nd2 {[%emt 0:00:16]} c5 {[%emt 0:00:14]} 4. Ngf3 {[%emt 0:01:09]} Nc6 {[%emt 0:00:23]} 5. exd5 {[%emt 0:01:56]} Qxd5 {[%emt 0:00:12]} 6. Bc4 {[%emt 0:02:30]} Qd8 {[%emt 0:00:06]} 7. Nb3 {[%emt 0:07:51]} cxd4 {[%emt 0:02:26]} 8. Nbxd4 {[%emt 0:01:57]} Nxd4 {[%emt 0:00:20]} 9. Qxd4 {[%emt 0:02:17]} Qxd4 {[%emt 0:00:52]} 10. Nxd4 {[%emt 0:00:08]} a6 {[%emt 0:00:09]} 11. a4 {[%emt 0:02:01]} Nf6 {[%emt 0:00:17]} 12. Bd2 {[%emt 0:07:02]} Bc5 {[%emt 0:00:21]} 13. Nb3 {[%emt 0:03:02]} Bd6 {[%emt 0:00:27]} 14. a5 {[%emt 0:04:48]} Bd7 {[%emt 0:00:51]} 15. Be3 {[%emt 0:08:29]} Rc8 {[%emt 0:00:43]} 16. Bd3 {[%emt 0:10:50]} Nd5 {[%emt 0:00:26]} 17. Bd2 {[%emt 0:05:57]} Bc6 {[%emt 0:00:32]} 18. Nd4 {[%emt 0:01:56]} Nf4 {[%emt 0:01:25]} 19. Bxf4 {[%emt 0:01:00]} Bxf4 {[%emt 0:00:09]} 20. Nxc6 {[%emt 0:02:10]} Rxc6 {[%emt 0:00:08]} 21. Ra4 {[%emt 0:05:44]} Be5 {[%emt 0:00:16]} 22. Rb4 {[%emt 0:02:06]} Rc7 {[%emt 0:00:58]} 23. Be4 {[%emt 0:05:50]} Ke7 {[%emt 0:00:17]} 24. Rxb7 {[%emt 0:04:35]} Rxb7 {[%emt 0:00:10]} 25. Bxb7 {[%emt 0:00:06]} Bxb2 {[%emt 0:00:03]} 26. Kd2 {[%emt 0:03:47]} Rd8+ {[%emt 0:00:08]} 27. Ke2 {[%emt 0:01:07]} Bc3 {[%emt 0:00:09]} 28. Rd1 {[%emt 0:01:39]} Rxd1 {[%emt 0:00:19]} 29. Kxd1 {[%emt 0:00:05]} Bxa5 {[%emt 0:00:14]} 30. Bxa6 {[%emt 0:00:11]} Kd6 {[%emt 0:00:08]} 31. Ke2 {[%emt 0:03:08]} f6 {[%emt 0:01:06]} 1/2-1/2

[Event "Germany Countries-chT Youth 2022"]
[Site "Wiesbaden"]
[Date "2022.10.01"]
[Round "1"]
[White "Keymer, Cecilia"]
[Black "Alhassan, Jodi"]
[Result "0-1"]
[ECO "B23"]
[WhiteElo "1696"]
[BlackElo "1227"]
[Annotator "NA RC COMBH"]
[PlyCount "120"]
[EventDate "2022.09.28"]
[EventType "team-tourn"]
[EventRounds "7"]
[EventCountry "GER"]
[SourceTitle "playchess.com"]
[Source "ChessBase"]
[SourceQuality "1"]
[TimeControl "40/5400+30:1800+30"]

1. e4 {[%emt 0:00:02]} c5 {[%emt 0:00:05]} 2. Nc3 {[%emt 0:00:10]} Nc6 {[%emt 0:00:08]} 3. f4 {[%emt 0:00:15]} g6 {[%emt 0:00:04]} 4. Nf3 {[%emt 0:00:52]} Bg7 {[%emt 0:00:09]} 5. Bb5 {[%emt 0:00:24]} Nd4 {[%emt 0:00:07]} 6. Bc4 {[%emt 0:00:39]} a6 {[%emt 0:00:39]} 7. O-O {[%emt 0:01:04]} b5 {[%emt 0:00:09]} 8. Be2 {[%emt 0:01:13]} e6 {[%emt 0:00:21]} 9. d3 {[%emt 0:01:58]} Nf6 {[%emt 0:00:34]} 10. e5 {[%emt 0:07:28]} Nxe2+ {[%emt 0:00:08]} 11. Qxe2 {[%emt 0:02:31]} Nd5 {[%emt 0:00:58]} 12. Ne4 {[%emt 0:12:08]} O-O {[%emt 0:01:49]} 13. Nxc5 {[%emt 0:03:36]} d6 {[%emt 0:01:00]} 14. Ne4 {[%emt 0:03:54]} dxe5 {[%emt 0:00:07]} 15. fxe5 {[%emt 0:01:03]} Qc7 {[%emt 0:00:54]} 16. Kh1 {[%emt 0:04:34]} Kh8 {[%emt 0:01:15]} 17. d4 {[%emt 0:02:31]} Bb7 {[%emt 0:00:19]} 18. c3 {[%emt 0:05:47]} a5 {[%emt 0:01:09]} 19. Qe1 {[%emt 0:03:53]} b4 {[%emt 0:00:30]} 20. Qh4 {[%emt 0:10:34]} f6 {[%emt 0:00:47]} 21. exf6 {[%emt 0:08:42]} Nxf6 {[%emt 0:00:17]} 22. Neg5 {[%emt 0:05:17]} Nh5 {[%emt 0:01:19]} 23. Nxe6 {[%emt 0:03:44]} Qc4 {[%emt 0:00:06]} 24. Re1 {[%emt 0:02:02]} bxc3 {[%emt 0:01:02]} 25. Nxf8 {[%emt 0:08:38]} Rxf8 {[%emt 0:00:08]} 26. bxc3 {[%emt 0:02:12]} Qxc3 {[%emt 0:01:22]} 27. Bd2 {[%emt 0:01:18]} Qa3 {[%emt 0:00:59]} 28. Re3 {[%emt 0:03:31]} Qd6 {[%emt 0:01:40]} 29. Rae1 {[%emt 0:00:50]} Nf4 {[%emt 0:02:18]} 30. Bxa5 {[%emt 0:01:11]} Qd5 {[%emt 0:03:09]} 31. Bb4 {[%emt 0:00:36]} Nxg2 {[%emt 0:00:57]} 32. Qg3 {[%emt 0:02:08]} Nxe1 {[%emt 0:01:47]} 33. Bxf8 {[%emt 0:00:36]} Nxf3 {[%emt 0:00:17]} 34. Bxg7+ {[%emt 0:00:28]} Kxg7 {[%emt 0:00:07]} 35. Rxf3 {[%emt 0:01:11]} Qxf3+ {[%emt 0:00:11]} 36. Qxf3 {[%emt 0:00:05]} Bxf3+ {[%emt 0:00:07]} 37. Kg1 {[%emt 0:00:05]} Kf6 {[%emt 0:00:05]} 38. Kf2 {[%emt 0:00:06]} Bc6 {[%emt 0:00:08]} 39. Ke3 {[%emt 0:00:05]} Ke6 {[%emt 0:00:06]} 40. a3 {[%emt 0:00:13]} Kd5 {[%emt 0:00:06]} 41. Kd3 {[%emt 0:30:22]} Bb5+ {[%emt 0:30:18]} 42. Ke3 {[%emt 0:00:33]} g5 {[%emt 0:00:08]} 43. h3 {[%emt 0:00:47]} h5 {[%emt 0:00:09]} 44. Kf3 {[%emt 0:00:00]} Kxd4 {[%emt 0:00:00]} 45. Kg3 {[%emt 0:00:00]} Bf1 {[%emt 0:00:00]} 46. a4 {[%emt 0:00:00]} Kc5 {[%emt 0:00:00]} 47. h4 {[%emt 0:00:00]} g4 {[%emt 0:00:00]} 48. Kf2 {[%emt 0:00:00]} Bc4 {[%emt 0:00:00]} 49. Kg3 {[%emt 0:00:00]} Kb4 {[%emt 0:00:00]} 50. a5 {[%emt 0:00:00]} Kxa5 {[%emt 0:00:00]} 51. Kf4 {[%emt 0:00:00]} Kb5 {[%emt 0:00:00]} 52. Kg3 {[%emt 0:00:00]} Kc5 {[%emt 0:00:00]} 53. Kf4 {[%emt 0:00:00]} Kd5 {[%emt 0:00:00]} 54. Kg3 {[%emt 0:00:00]} Ke4 {[%emt 0:00:00]} 55. Kh2 {[%emt 0:00:00]} Kf3 {[%emt 0:00:00]} 56. Kg1 {[%emt 0:00:00]} g3 {[%emt 0:00:00]} 57. Kh1 {[%emt 0:00:00]} g2+ {[%emt 0:00:00]} 58. Kg1 {[%emt 0:00:00]} Bf1 {[%emt 0:00:00]} 59. Kh2 {[%emt 0:00:00]} Kf2 {[%emt 0:00:00]} 60. Kh3 {[%emt 0:00:00]} g1=B# {[%emt 0:00:14]} 0-1

[Event "Germany Countries-chT Youth 2022"]
[Site "Wiesbaden"]
[Date "2022.10.01"]
[Round "1"]
[White "Hubert, Charlotte"]
[Black "Falke, Ornella"]
[Result "1/2-1/2"]
[ECO "B44"]
[WhiteElo "1671"]
[BlackElo "1953"]
[Annotator "TA"]
[PlyCount "86"]
[EventDate "2022.09.28"]
[EventType "team-tourn"]
[EventRounds "7"]
[EventCountry "GER"]
[SourceTitle "playchess.com"]
[Source "ChessBase"]
[SourceQuality "1"]
[TimeControl "40/5400+30:1800+30"]

{[%evp 12,86,15,4,10,0,3,8,0,0,0,0,0,-36,-11,0,0,-5,17,0,0,0,0,0,0,0,27,-32,0,0,0,0,0,0,0,0,0,0,0,0,8,5,25,14,47,51,54,0,0,0,0,0,0,-8,-8,-36,0,0,0,0,0,-5,0,0,0,0,0,0,0,0,0,0,0,0,0,0,10]} 1. e4 {[%emt 0:00:03]} c5 {[%emt 0:00:09]} 2. Nf3 {[%emt 0:00:07][%cal Bg1f3,Bf3d4,Bd4b5][%mdl 32]} e6 {[%emt 0:00:09]} 3. d4 {[%emt 0:00:09]} cxd4 {[%emt 0:00:06]} 4. Nxd4 {[%emt 0:00:08]} Nc6 {[%emt 0:00:13]} 5. Nb5 {[%emt 0:01:39]} d6 {[%emt 0:00:44]} 6. c4 {[%emt 0:00:09]} Nf6 {[%emt 0:00:37]} 7. N1c3 {[%emt 0:00:22]} a6 {[%emt 0:00:19] B44: Sicilian: Taimanov: 5 Nb5.} 8. Na3 {[%emt 0:00:14] 8.Nd4 is the modern continuation.} Qa5 {[%emt 0:03:11]} 9. Bd2 {[%emt 0:09:23]} Be7 {[%emt 0:04:26]} 10. Nd5 {[%emt 0:13:09]} Qd8 {[%emt 0:05:41]} 11. Nxe7 {[%emt 0:04:22]} Qxe7 {[%emt 0:00:23]} 12. Bd3 {[%emt 0:11:10]} d5 $1 {[%emt 0:13:00]} 13. exd5 {[%emt 0:18:16]} exd5+ {[%emt 0:00:13]} 14. Qe2 {[%emt 0:00:40] [#]} Ne5 $146 {[%emt 0:11:26]} ({Predecessor:} 14... Qxe2+ 15. Kxe2 Be6 16. c5 O-O-O 17. Rhe1 Ne5 18. f3 Rhe8 19. Bf4 Nc4 20. Bxc4 dxc4 {0-1 (54) Thakur,A (2308)-Xiang,Z (2436) Graz 2019}) 15. O-O {[%emt 0:08:02] [#] Threatens to win with Rae1.} Bg4 {[%emt 0:10:29]} 16. f3 {[%emt 0:04:32]} Nxd3 {[%emt 0:00:33]} 17. Qxd3 {[%emt 0:00:17]} Be6 {[%emt 0:00:18]} 18. Rac1 {[%emt 0:09:19]} O-O {[%emt 0:01:19]} 19. Bf4 {[%emt 0:05:57]} (19. c5 $11) 19... Qb4 {[%emt 0:09:26]} 20. Qd2 {[%emt 0:03:53]} Qxd2 {[%emt 0:04:37]} (20... a5 {is more complex.} 21. Rfd1 Rfc8 22. c5 Nd7) 21. Bxd2 {[%emt 0:00:04]} dxc4 {[%emt 0:00:32]} 22. Nxc4 {[%emt 0:01:44]} b5 {[%emt 0:00:54]} 23. Nb6 {[%emt 0:02:39]} Rab8 {[%emt 0:05:46]} 24. Be3 {[%emt 0:00:07]} Rfe8 {[%emt 0:05:04]} 25. a3 {[%emt 0:01:42]} Bf5 {[%emt 0:02:54]} 26. Bd4 {[%emt 0:00:56]} Re6 {[%emt 0:08:11]} 27. Bxf6 {[%emt 0:00:41] [#] And now Nd7 would win.} Rxf6 {[%emt 0:00:36]} 28. Nd5 {[%emt 0:00:12]} Re6 {[%emt 0:00:08]} 29. Rfe1 {[%emt 0:01:23]} ({White should play} 29. Rfd1 $14) 29... Rxe1+ $11 {[%emt 0:01:18]} 30. Rxe1 {[%emt 0:00:15][%mdl 4096] Endgame Black must now prevent Ne7+. KRB-KRN} Kf8 {[%emt 0:00:47]} 31. Rc1 {[%emt 0:02:03]} Rd8 {[%emt 0:01:00]} 32. Ne3 {[%emt 0:00:22]} Be6 {[%emt 0:02:22]} 33. Rd1 {[%emt 0:00:50]} Rc8 {[%emt 0:02:19]} 34. Kf2 {[%emt 0:01:09] The position is equal.} Ke7 {[%emt 0:00:12]} 35. Ke2 {[%emt 0:00:37]} a5 {[%emt 0:03:12]} 36. Kd2 {[%emt 0:00:51]} f5 {[%emt 0:02:28]} 37. f4 {[%emt 0:00:44]} b4 {[%emt 0:01:03]} 38. axb4 {[%emt 0:00:21]} axb4 {[%emt 0:00:03]} 39. Ra1 {[%emt 0:00:13]} Rd8+ {[%emt 0:00:49]} 40. Ke2 {[%emt 0:00:31]} Rd4 {[%emt 0:01:34]} 41. Ra7+ {[%emt 0:05:59]} Kf6 {[%emt 0:00:18]} 42. Ra6 {[%emt 0:02:30]} h6 {[%emt 0:09:10]} 43. h4 {[%emt 0:04:09]} Re4 {[%emt 0:08:09] Weighted Error Value: White=0.08 (flawless) /Black=0.05 (flawless)} 1/2-1/2

[Event "Germany Countries-chT Youth 2022"]
[Site "Wiesbaden"]
[Date "2022.10.01"]
[Round "1"]
[White "Bezsonna, Polina"]
[Black "Dohon, Maria-Johanna"]
[Result "1-0"]
[ECO "B12"]
[WhiteElo "1649"]
[BlackElo "1430"]
[Annotator "NA RC COMBH"]
[PlyCount "141"]
[EventDate "2022.09.28"]
[EventType "team-tourn"]
[EventRounds "7"]
[EventCountry "GER"]
[SourceTitle "playchess.com"]
[Source "ChessBase"]
[SourceQuality "1"]
[TimeControl "40/5400+30:1800+30"]

1. e4 {[%emt 0:00:05]} c6 {[%emt 0:00:14]} 2. d4 {[%emt 0:00:23]} d5 {[%emt 0:00:07]} 3. e5 {[%emt 0:00:37]} c5 {[%emt 0:00:12]} 4. dxc5 {[%emt 0:00:34]} Nc6 {[%emt 0:00:08]} 5. Nf3 {[%emt 0:00:46]} Bg4 {[%emt 0:00:48]} 6. c3 {[%emt 0:00:49]} Bxf3 {[%emt 0:08:32]} 7. Qxf3 {[%emt 0:00:47]} Nxe5 {[%emt 0:01:15]} 8. Bb5+ {[%emt 0:01:17]} Nc6 {[%emt 0:01:30]} 9. c4 {[%emt 0:02:11]} e6 {[%emt 0:11:19]} 10. cxd5 {[%emt 0:21:31]} Qxd5 {[%emt 0:03:08]} 11. Qxd5 {[%emt 0:02:54]} exd5 {[%emt 0:00:07]} 12. Be3 {[%emt 0:05:23]} O-O-O {[%emt 0:04:47]} 13. Bxc6 {[%emt 0:05:13]} bxc6 {[%emt 0:00:10]} 14. Bd4 {[%emt 0:05:23]} Ne7 {[%emt 0:05:36]} 15. b4 {[%emt 0:02:54]} Ng6 {[%emt 0:08:31]} 16. O-O {[%emt 0:01:05]} Re8 {[%emt 0:09:11]} 17. Nc3 {[%emt 0:01:55]} Nf4 {[%emt 0:05:47]} 18. Rfe1 {[%emt 0:13:14]} Rxe1+ {[%emt 0:11:59]} 19. Rxe1 {[%emt 0:00:08]} Kd7 {[%emt 0:01:57]} 20. Rd1 {[%emt 0:06:47]} Ne6 {[%emt 0:02:17]} 21. Be3 {[%emt 0:04:41]} a6 {[%emt 0:04:18]} 22. a4 {[%emt 0:03:45]} Be7 {[%emt 0:03:59]} 23. b5 {[%emt 0:04:37]} axb5 {[%emt 0:00:50]} 24. axb5 {[%emt 0:00:31]} Bxc5 {[%emt 0:06:23]} 25. Bxc5 {[%emt 0:06:13]} Nxc5 {[%emt 0:00:06]} 26. bxc6+ {[%emt 0:00:08]} Kxc6 {[%emt 0:00:14]} 27. Nxd5 {[%emt 0:02:35]} Re8 {[%emt 0:02:05]} 28. Ne3 {[%emt 0:02:05]} g6 {[%emt 0:03:40]} 29. h3 {[%emt 0:00:43]} Nb7 {[%emt 0:03:24]} 30. Ng4 {[%emt 0:01:02]} Re6 {[%emt 0:01:21]} 31. Rc1+ {[%emt 0:01:14]} Kd7 {[%emt 0:00:17]} 32. Ra1 {[%emt 0:01:00]} f5 {[%emt 0:01:25]} 33. Ra7 {[%emt 0:01:28]} Kc6 {[%emt 0:00:40]} 34. Ra6+ {[%emt 0:00:30]} Kd7 {[%emt 0:00:08]} 35. Nf6+ {[%emt 0:00:53]} Ke7 {[%emt 0:00:37]} 36. Rxe6+ {[%emt 0:00:23]} Kxe6 {[%emt 0:00:05]} 37. Nxh7 {[%emt 0:00:08]} Nd6 {[%emt 0:00:50]} 38. Ng5+ {[%emt 0:00:16]} Kf6 {[%emt 0:00:36]} 39. h4 {[%emt 0:01:30]} Nc4 {[%emt 0:00:39]} 40. Kf1 {[%emt 0:00:22]} Ne5 {[%emt 0:00:36]} 41. Ke2 {[%emt 0:30:34]} Nc4 {[%emt 0:02:42]} 42. f3 {[%emt 0:00:00]} Ne5 {[%emt 0:03:44]} 43. Ke3 {[%emt 0:00:00]} Nc4+ {[%emt 0:10:22]} 44. Kf4 {[%emt 0:00:00]} Nb2 {[%emt 0:04:18]} 45. g4 {[%emt 0:00:00]} fxg4 {[%emt 0:01:09]} 46. fxg4 {[%emt 0:00:00]} Nd3+ {[%emt 0:01:09]} 47. Ke3 {[%emt 0:00:00]} Ne5 {[%emt 0:00:51]} 48. Ne4+ {[%emt 0:00:00]} Kg7 {[%emt 0:05:19]} 49. Kf4 {[%emt 0:00:00]} Nd3+ {[%emt 0:00:11]} 50. Kg5 {[%emt 0:00:00]} Ne5 {[%emt 0:01:12]} 51. Kf4 {[%emt 0:00:00]} Nd3+ {[%emt 0:00:09]} 52. Kg3 {[%emt 0:00:00]} Ne5 {[%emt 0:00:44]} 53. Nc5 {[%emt 0:00:00]} Nf7 {[%emt 0:02:26]} 54. Kf4 {[%emt 0:00:00]} Kf6 {[%emt 0:00:30]} 55. g5+ {[%emt 0:00:00]} Kg7 {[%emt 0:00:09]} 56. Nb7 {[%emt 0:00:00]} Kg8 {[%emt 0:01:27]} 57. Ke4 {[%emt 0:00:00]} Kg7 {[%emt 0:00:47]} 58. Kd5 {[%emt 0:00:00]} Kg8 {[%emt 0:01:12]} 59. Ke6 {[%emt 0:00:00]} Kg7 {[%emt 0:00:22]} 60. Nd6 {[%emt 0:00:00]} Nh8 {[%emt 0:00:07]} 61. Ke7 {[%emt 0:00:00]} Kg8 {[%emt 0:00:46]} 62. Ne8 {[%emt 0:00:00]} Nf7 {[%emt 0:00:28]} 63. Kf6 {[%emt 0:00:00]} Nh8 {[%emt 0:00:22]} 64. Nc7 {[%emt 0:00:51]} Kh7 {[%emt 0:00:54]} 65. Ke7 {[%emt 0:01:31]} Kg7 {[%emt 0:00:47]} 66. Ne6+ {[%emt 0:00:44]} Kg8 {[%emt 0:00:18]} 67. Kf6 {[%emt 0:00:14]} Kh7 {[%emt 0:00:42]} 68. Nf8+ {[%emt 0:00:09]} Kg8 {[%emt 0:00:13]} 69. Nxg6 {[%emt 0:00:07]} Nf7 {[%emt 0:00:20]} 70. Ne7+ {[%emt 0:00:17]} Kf8 {[%emt 0:01:16]} 71. g6 {[%emt 0:00:14]} 1-0

[Event "Germany Countries-chT Youth 2022"]
[Site "Wiesbaden"]
[Date "2022.10.01"]
[Round "1"]
[White "Haug, Mara"]
[Black "Hoffmann, Sophia"]
[Result "0-1"]
[ECO "C26"]
[WhiteElo "1611"]
[BlackElo "1258"]
[Annotator "NA RC COMBH"]
[PlyCount "72"]
[EventDate "2022.09.28"]
[EventType "team-tourn"]
[EventRounds "7"]
[EventCountry "GER"]
[SourceTitle "playchess.com"]
[Source "ChessBase"]
[SourceQuality "1"]
[TimeControl "40/5400+30:1800+30"]

1. e4 {[%emt 0:00:05]} e5 {[%emt 0:00:06]} 2. Nc3 {[%emt 0:00:18]} Nf6 {[%emt 0:00:21]} 3. g3 {[%emt 0:00:07]} Bc5 {[%emt 0:00:19]} 4. Bg2 {[%emt 0:00:27]} Nc6 {[%emt 0:00:44]} 5. Nge2 {[%emt 0:00:09]} d6 {[%emt 0:00:33]} 6. O-O {[%emt 0:00:08]} Be6 {[%emt 0:00:57]} 7. h3 {[%emt 0:01:18]} O-O {[%emt 0:02:22]} 8. d3 {[%emt 0:00:55]} Nd7 {[%emt 0:02:21]} 9. Kh2 {[%emt 0:01:32]} f5 {[%emt 0:01:10]} 10. f4 {[%emt 0:03:42]} fxe4 {[%emt 0:02:20]} 11. Nxe4 {[%emt 0:08:07]} Bb6 {[%emt 0:03:18]} 12. Ng5 {[%emt 0:04:44]} Qe7 {[%emt 0:01:20]} 13. Nc3 {[%emt 0:06:46]} Rf6 {[%emt 0:06:17]} 14. Nxe6 {[%emt 0:01:51]} Rxe6 {[%emt 0:07:22]} 15. Bd5 {[%emt 0:01:33]} Kh8 {[%emt 0:00:54]} 16. Bxe6 {[%emt 0:00:43]} Qxe6 {[%emt 0:00:17]} 17. fxe5 {[%emt 0:01:58]} Ncxe5 {[%emt 0:02:37]} 18. Bf4 {[%emt 0:03:26]} Nf6 {[%emt 0:05:08]} 19. Bxe5 {[%emt 0:02:17]} Qxe5 {[%emt 0:01:52]} 20. Qe2 {[%emt 0:02:48]} Qg5 {[%emt 0:03:11]} 21. Rae1 {[%emt 0:03:15]} h6 {[%emt 0:01:26]} 22. Ne4 {[%emt 0:02:41]} Nxe4 {[%emt 0:02:53]} 23. Qxe4 {[%emt 0:01:06]} c6 {[%emt 0:03:16]} 24. Qe7 {[%emt 0:05:49]} Qc5 {[%emt 0:03:23]} 25. c3 {[%emt 0:03:26]} Qb5 {[%emt 0:04:42]} 26. Qe2 {[%emt 0:02:23]} Rg8 {[%emt 0:01:46]} 27. d4 {[%emt 0:01:08]} Qg5 {[%emt 0:03:04]} 28. Rf7 {[%emt 0:03:00]} c5 {[%emt 0:02:46]} 29. dxc5 {[%emt 0:04:19]} Bxc5 {[%emt 0:03:44]} 30. Ref1 {[%emt 0:03:18]} Qg6 {[%emt 0:06:46]} 31. Rxb7 {[%emt 0:02:43]} Re8 {[%emt 0:01:13]} 32. Qf3 {[%emt 0:12:32]} Qc2+ {[%emt 0:04:26]} 33. Kh1 {[%emt 0:01:20]} Qd2 {[%emt 0:12:37]} 34. Rxg7 {[%emt 0:08:25]} Qe3 {[%emt 0:08:31]} 35. Qxe3 {[%emt 0:04:47]} Rxe3 {[%emt 0:00:28]} 36. Rd7 {[%emt 0:02:13]} Kg8 {[%emt 0:02:25]} 0-1

[Event "Germany Countries-chT Youth 2022"]
[Site "Wiesbaden"]
[Date "2022.10.01"]
[Round "1"]
[White "Pflugradt, Natalie"]
[Black "Nechitailo, Nikita"]
[Result "0-1"]
[ECO "B25"]
[WhiteElo "1518"]
[BlackElo "1651"]
[Annotator "NA RC COMBH"]
[PlyCount "48"]
[EventDate "2022.09.28"]
[EventType "team-tourn"]
[EventRounds "7"]
[EventCountry "GER"]
[SourceTitle "playchess.com"]
[Source "ChessBase"]
[SourceQuality "1"]
[TimeControl "40/5400+30:1800+30"]

1. e4 {[%emt 0:00:04]} c5 {[%emt 0:00:02]} 2. Nc3 {[%emt 0:00:08]} g6 {[%emt 0:00:04]} 3. g3 {[%emt 0:00:19]} Bg7 {[%emt 0:00:04]} 4. Bg2 {[%emt 0:00:25]} Nc6 {[%emt 0:00:05]} 5. f4 {[%emt 0:01:12]} d6 {[%emt 0:00:30]} 6. d3 {[%emt 0:06:08]} e6 {[%emt 0:00:13]} 7. Nf3 {[%emt 0:03:02]} Nge7 {[%emt 0:00:25]} 8. O-O {[%emt 0:00:50]} O-O {[%emt 0:00:07]} 9. Qe1 {[%emt 0:06:53]} Rb8 {[%emt 0:01:56]} 10. g4 {[%emt 0:03:00]} f5 {[%emt 0:02:30]} 11. h3 {[%emt 0:06:02]} Nd4 {[%emt 0:01:22]} 12. Nxd4 {[%emt 0:06:22]} Bxd4+ {[%emt 0:00:20]} 13. Kh1 {[%emt 0:01:36]} b5 {[%emt 0:06:19]} 14. Ne2 {[%emt 0:05:35]} Bg7 {[%emt 0:00:56]} 15. Ng1 {[%emt 0:07:09]} Bb7 {[%emt 0:03:50]} 16. Nf3 {[%emt 0:03:22]} Nc6 {[%emt 0:01:44]} 17. exf5 {[%emt 0:03:51]} exf5 {[%emt 0:00:05]} 18. Qe6+ {[%emt 0:00:22]} Kh8 {[%emt 0:00:13]} 19. Ng5 {[%emt 0:01:52]} Nd4 {[%emt 0:03:54]} 20. Nf7+ {[%emt 0:02:46]} Rxf7 {[%emt 0:00:05]} 21. Qxf7 {[%emt 0:00:05]} Qh4 {[%emt 0:00:01]} 22. Bxb7 {[%emt 0:21:21]} Qxh3+ {[%emt 0:00:04]} 23. Kg1 {[%emt 0:00:07]} Qg3+ {[%emt 0:00:01]} 24. Kh1 {[%emt 0:01:09]} Ne2 {[%emt 0:00:00]} 0-1

[Event "Germany Countries-chT Youth 2022"]
[Site "Wiesbaden"]
[Date "2022.10.01"]
[Round "1"]
[White "Noennig, Jakob"]
[Black "Trunz, Michelle"]
[Result "0-1"]
[ECO "B50"]
[WhiteElo "1510"]
[BlackElo "1821"]
[Annotator "NA RC COMBH"]
[PlyCount "131"]
[EventDate "2022.09.28"]
[EventType "team-tourn"]
[EventRounds "7"]
[EventCountry "GER"]
[SourceTitle "playchess.com"]
[Source "ChessBase"]
[SourceQuality "1"]
[TimeControl "40/5400+30:1800+30"]

1. e4 {[%emt 0:00:02]} c5 {[%emt 0:00:09]} 2. Nf3 {[%emt 0:00:10]} d6 {[%emt 0:00:06]} 3. c3 {[%emt 0:01:08]} Nf6 {[%emt 0:01:01]} 4. Bc4 {[%emt 0:00:55]} e6 {[%emt 0:00:34]} 5. Qe2 {[%emt 0:02:10]} Be7 {[%emt 0:02:04]} 6. O-O {[%emt 0:02:26]} O-O {[%emt 0:00:20]} 7. Bb3 {[%emt 0:02:16]} b6 {[%emt 0:00:39]} 8. d3 {[%emt 0:05:29]} Bb7 {[%emt 0:00:49]} 9. Re1 {[%emt 0:02:38]} Nc6 {[%emt 0:02:35]} 10. Nbd2 {[%emt 0:01:56]} Qc7 {[%emt 0:01:29]} 11. Nf1 {[%emt 0:02:24]} Rad8 {[%emt 0:01:10]} 12. Bf4 {[%emt 0:05:00]} Rfe8 {[%emt 0:03:09]} 13. Ng3 {[%emt 0:01:23]} Qc8 {[%emt 0:11:09]} 14. Rad1 {[%emt 0:07:18]} Ba6 {[%emt 0:05:35]} 15. Ba4 {[%emt 0:08:24]} Nd7 {[%emt 0:01:24]} 16. Qd2 {[%emt 0:10:45]} b5 {[%emt 0:01:19]} 17. Bc2 {[%emt 0:00:41]} Nde5 {[%emt 0:01:05]} 18. b4 {[%emt 0:11:54]} Nxf3+ {[%emt 0:00:52]} 19. gxf3 {[%emt 0:00:13]} cxb4 {[%emt 0:00:43]} 20. d4 {[%emt 0:02:21]} bxc3 {[%emt 0:02:55]} 21. Qxc3 {[%emt 0:00:29]} Nxd4 {[%emt 0:04:42]} 22. Qxd4 {[%emt 0:02:23]} e5 {[%emt 0:02:42]} 23. Bxe5 {[%emt 0:07:49]} dxe5 {[%emt 0:00:17]} 24. Qb2 {[%emt 0:03:07]} Bc5 {[%emt 0:01:36]} 25. Rc1 {[%emt 0:02:58]} Bd4 {[%emt 0:01:31]} 26. Qa3 {[%emt 0:01:04]} b4 {[%emt 0:04:12]} 27. Qa4 {[%emt 0:09:13]} Bc3 {[%emt 0:27:55]} 28. Bb3 {[%emt 0:01:30]} Qb7 {[%emt 0:07:08]} 29. Bd5 {[%emt 0:01:03]} Qb6 {[%emt 0:00:41]} 30. Red1 {[%emt 0:00:57]} Bb7 {[%emt 0:05:36]} 31. Qb3 {[%emt 0:01:07]} Bxd5 {[%emt 0:00:08]} 32. exd5 {[%emt 0:01:23]} Rd6 {[%emt 0:02:29]} 33. a3 {[%emt 0:01:35]} a5 {[%emt 0:02:59]} 34. axb4 {[%emt 0:01:32]} axb4 {[%emt 0:00:12]} 35. Qc4 {[%emt 0:00:24]} Red8 {[%emt 0:02:15]} 36. Rc2 {[%emt 0:00:43]} Qb7 {[%emt 0:00:48]} 37. Nf5 {[%emt 0:00:31]} Rg6+ {[%emt 0:01:23]} 38. Kh1 {[%emt 0:00:08]} Qd7 {[%emt 0:01:12]} 39. Qe4 {[%emt 0:00:57]} Rg5 {[%emt 0:01:13]} 40. Ng3 {[%emt 0:00:55]} Rc8 {[%emt 0:01:43]} 41. d6 {[%emt 0:30:55]} b3 {[%emt 0:01:34]} 42. Re2 {[%emt 0:00:00]} b2 {[%emt 0:10:45]} 43. Qh4 {[%emt 0:00:00]} Rg6 {[%emt 0:04:15]} 44. Qe7 {[%emt 0:00:00]} Rxd6 {[%emt 0:01:26]} 45. Qxd7 {[%emt 0:00:00]} Rxd7 {[%emt 0:00:06]} 46. Rb1 {[%emt 0:00:00]} Rcd8 {[%emt 0:01:44]} 47. Kg2 {[%emt 0:00:00]} Rd1 {[%emt 0:00:38]} 48. Rexb2 {[%emt 0:00:00]} Bxb2 {[%emt 0:00:17]} 49. Rxb2 {[%emt 0:00:00]} g6 {[%emt 0:01:09]} 50. Rb7 {[%emt 0:00:00]} f5 {[%emt 0:00:35]} 51. Re7 {[%emt 0:00:00]} R1d5 {[%emt 0:00:33]} 52. Ne2 {[%emt 0:00:00]} R8d7 {[%emt 0:00:22]} 53. Re8+ {[%emt 0:00:25]} Kf7 {[%emt 0:00:22]} 54. Ra8 {[%emt 0:00:23]} Rd2 {[%emt 0:02:59]} 55. Ng3 {[%emt 0:01:06]} Rc2 {[%emt 0:01:09]} 56. Ra1 {[%emt 0:01:51]} h6 {[%emt 0:01:29]} 57. Re1 {[%emt 0:02:34]} Rdd2 {[%emt 0:00:48]} 58. Nh1 {[%emt 0:00:37]} Kf6 {[%emt 0:00:15]} 59. Kg3 {[%emt 0:00:29]} Rd3 {[%emt 0:00:30]} 60. Ra1 {[%emt 0:00:48]} f4+ {[%emt 0:01:46]} 61. Kg2 {[%emt 0:01:33]} Rcc3 {[%emt 0:00:36]} 62. Ra6+ {[%emt 0:00:38]} Kf5 {[%emt 0:00:11]} 63. Ra8 {[%emt 0:00:39]} Rxf3 {[%emt 0:00:54]} 64. Rf8+ {[%emt 0:00:16]} Kg4 {[%emt 0:02:06]} 65. Rg8 {[%emt 0:00:34]} g5 {[%emt 0:00:19]} 66. Rh8 {[%emt 0:00:21]} 0-1